Workbook

Sheet Animacion
D4: Gráfica | F4: T0 (K) | H4: T1 (k) | J4: α (m2/s) X 10-6 | L4: H | N4: t
F6: 700 | H6: 300 | J6: 1.3e-05 | L6: 1 | N6: 180 | Z6: 1 | AB6: TRUE
S7: x | T7: Primero | Z7: x | AA7: temporal | AB7: Espacial | AC7: 1o | AD7: 2o | AE7: 3o | AF7: Suma
R8: 0 | S8: =(R8*L$6)/(100) -> 0 | T8: =IF($AB$6=TRUE,AF8,"") -> 0 | Y8: 0 | Z8: =(Y8*L$6)/(100) -> 0 | AA8: =-(PI()^2*J6*N6)/(4*L6^2) -> -0.005773718575 | AB8: =SIN((PI()*Z8)/(L$6)) -> 0 | AC8: =EXP(AA$8)*AB8 -> 0 | AD8: =(1/3)*EXP(9*AA$8)*SIN(3*AB8) -> 0 | AE8: =(1/5)*EXP(25*AA$8)*SIN(5*AB8) -> 0 | AF8: 0
R9: 1 | S9: 0.01 | T9: 0.08808327135 | Y9: 1 | Z9: =(Y9*L$6)/(100) -> 0.01 | AB9: 0.03141075908 | AC9: 0.03122992474 | AD9: 0.02977611675 | AE9: 0.02707722985 | AF9: =SUM(AC9:AE9) -> 0.08808327135
R10: 2 | S10: 0.02 | T10: 0.175150574 | Y10: 2 | Z10: 0.02 | AB10: 0.06279051953 | AC10: 0.06242902932 | AD10: 0.05925911733 | AE10: 0.05346242737 | AF10: =SUM(AC10:AE10) -> 0.175150574
R11: 3 | S11: 0.03 | T11: 0.2602137855 | Y11: 3 | Z11: 0.03 | AB11: 0.09410831332 | AC11: 0.09356652398 | AD11: 0.08816084088 | AE11: 0.07848642066 | AF11: 0.2602137855
R12: 4 | S12: 0.04 | T12: 0.3423393366 | Y12: 4 | Z12: 0.04 | AB12: 0.1253332336 | AC12: 0.1246116798 | AD12: 0.1162029133 | AE12: 0.1015247435 | AF12: 0.3423393366
R13: 5 | S13: 0.05 | T13: 0.4206727022 | Y13: 5 | Z13: 0.05 | AB13: 0.156434465 | AC13: 0.1555338589 | AD13: 0.143121335 | AE13: 0.1220175083 | AF13: 0.4206727022
R14: 6 | S14: 0.06 | T14: 0.4944597194 | Y14: 6 | Z14: 0.06 | AB14: 0.1873813146 | AC14: 0.1863025449 | AD14: 0.1686707139 | AE14: 0.1394864607 | AF14: 0.4944597194
R15: 7 | S15: 0.07 | T15: 0.5630639455 | Y15: 7 | Z15: 0.07 | AB15: 0.2181432414 | AC15: 0.2168873727 | AD15: 0.1926280439 | AE15: 0.1535485289 | AF15: 0.5630639455
R16: 8 | S16: 0.08 | T16: 0.6259794766 | Y16: 8 | Z16: 0.08 | AB16: 0.2486898872 | AC16: 0.2472581589 | AD16: 0.2147959453 | AE16: 0.1639253724 | AF16: 0.6259794766
R17: 9 | S17: 0.09 | T17: 0.6828388801 | Y17: 9 | Z17: 0.09 | AB17: 0.278991106 | AC17: 0.2773849312 | AD17: 0.2350052994 | AE17: 0.1704486496 | AF17: 0.6828388801
R18: 10 | S18: 0.1 | T18: 0.7334161373 | Y18: 10 | Z18: 0.1 | AB18: 0.3090169944 | AC18: 0.307237958 | AD18: 0.253117232 | AE18: 0.1730609473 | AF18: 0.7334161373
R19: 11 | S19: 0.11 | T19: 0.7776247257 | Y19: 11 | Z19: 0.11 | AB19: 0.3387379202 | AC19: 0.336787778 | AD19: 0.269024418 | AE19: 0.1718125297 | AF19: 0.7776247257
R20: 12 | S20: 0.12 | T20: 0.8155111919 | Y20: 12 | Z20: 0.12 | AB20: 0.3681245527 | AC20: 0.3660052292 | AD20: 0.2826517007 | AE20: 0.166854262 | AF20: 0.8155111919
R21: 13 | S21: 0.13 | T21: 0.8472447476 | Y21: 13 | Z21: 0.13 | AB21: 0.3971478906 | AC21: 0.3948614774 | AD21: 0.2939560416 | AE21: 0.1584272286 | AF21: 0.8472447476
R22: 14 | S22: 0.14 | T22: 0.8731035702 | Y22: 14 | Z22: 0.14 | AB22: 0.4257792916 | AC22: 0.423328045 | AD22: 0.302925831 | AE22: 0.1468496943 | AF22: 0.8731035702
R23: 15 | S23: 0.15 | T23: 0.8934585874 | Y23: 15 | Z23: 0.15 | AB23: 0.4539904997 | AC23: 0.4513768389 | AD23: 0.3095796103 | AE23: 0.1325021382 | AF23: 0.8934585874
R24: 16 | S24: 0.16 | T24: 0.9087555754 | Y24: 16 | Z24: 0.16 | AB24: 0.4817536741 | AC24: 0.4789801784 | AD24: 0.3139642681 | AE24: 0.1158111289 | AF24: 0.9087555754
R25: 17 | S25: 0.17 | T25: 0.9194964085 | Y25: 17 | Z25: 0.17 | AB25: 0.5090414158 | AC25: 0.5061108222 | AD25: 0.3161527853 | AE25: 0.0972328009 | AF25: 0.9194964085
R26: 18 | S26: 0.18 | T26: 0.9262202534 | Y26: 18 | Z26: 0.18 | AB26: 0.535826795 | AC26: 0.5327419958 | AD26: 0.3162416107 | AE26: 0.07723664695 | AF26: 0.9262202534
R27: 19 | S27: 0.19 | T27: 0.9294854316 | Y27: 19 | Z27: 0.19 | AB27: 0.5620833779 | AC27: 0.5588474174 | AD27: 0.314347755 | AE27: 0.05629025927 | AF27: 0.9294854316
R28: 20 | S28: 0.2 | T28: 0.9298525637 | Y28: 20 | Z28: 0.2 | AB28: 0.5877852523 | AC28: 0.584401324 | AD28: 0.3106056927 | AE28: 0.03484554703 | AF28: 0.9298525637
R29: 21 | S29: 0.21 | T29: 0.9278694898 | Y29: 21 | Z29: 0.21 | AB29: 0.6129070537 | AC29: 0.6093784971 | AD29: 0.3051641575 | AE29: 0.01332683532 | AF29: 0.9278694898
R30: 22 | S30: 0.22 | T30: 0.924058325 | Y30: 22 | Z30: 0.22 | AB30: 0.6374239897 | AC30: 0.6337542871 | AD30: 0.2981829173 | AE30: -0.00787887938 | AF30: 0.924058325
R31: 23 | S31: 0.23 | T31: 0.9189048713 | Y31: 23 | Z31: 0.23 | AB31: 0.6613118653 | AC31: 0.6575046382 | AD31: 0.2898296042 | AE31: -0.02842937115 | AF31: 0.9189048713
R32: 24 | S32: 0.24 | T32: 0.9128504819 | Y32: 24 | Z32: 0.24 | AB32: 0.6845471059 | AC32: 0.6806061116 | AD32: 0.2802766694 | AE32: -0.0480322991 | AF32: 0.9128504819
R33: 25 | S33: 0.25 | T33: 0.9062863554 | Y33: 25 | Z33: 0.25 | AB33: 0.7071067812 | AC33: 0.703035909 | AD33: 0.2696985224 | AE33: -0.06644807602 | AF33: 0.9062863554
R34: 26 | S34: 0.26 | T34: 0.899550136 | Y34: 26 | Z34: 0.26 | AB34: 0.7289686274 | AC34: 0.7247718948 | AD34: 0.2582689032 | AE34: -0.08349066196 | AF34: =SUM(AC34:AE34) -> 0.899550136
R35: 27 | S35: 0.27 | T35: 0.8929246224 | Y35: 27 | Z35: 0.27 | AB35: 0.7501110696 | AC35: 0.7457926182 | AD35: 0.2461585255 | AE35: -0.09902652131 | AF35: 0.8929246224
R36: 28 | S36: 0.28 | T36: 0.8866383237 | Y36: 28 | Z36: 0.28 | AB36: 0.7705132428 | AC36: 0.7660773343 | AD36: 0.233533018 | AE36: -0.1129720286 | AF36: 0.8866383237
R37: 29 | S37: 0.29 | T37: 0.8808675697 | Y37: 29 | Z37: 0.29 | AB37: 0.7901550124 | AC37: 0.7856060246 | AD37: 0.2205511789 | AE37: -0.1252896338 | AF37: 0.8808675697
R38: 30 | S38: 0.3 | T38: 0.8757398627 | Y38: 30 | Z38: 0.3 | AB38: 0.8090169944 | AC38: 0.8043594166 | AD38: 0.2073635517 | AE38: -0.1359831056 | AF38: 0.8757398627
R39: 31 | S39: 0.31 | T39: 0.871338161 | Y39: 31 | Z39: 0.31 | AB39: 0.8270805743 | AC39: 0.822319003 | AD39: 0.1941113164 | AE39: -0.1450921584 | AF39: 0.871338161
R40: 32 | S40: 0.32 | T40: 0.8677057975 | Y40: 32 | Z40: 0.32 | AB40: 0.8443279255 | AC40: 0.8394670598 | AD40: 0.1809254884 | AE40: -0.1526867508 | AF40: 0.8677057975
R41: 33 | S41: 0.33 | T41: 0.8648517639 | Y41: 33 | Z41: 0.33 | AB41: 0.860742027 | AC41: 0.855786664 | AD41: 0.1679264046 | AE41: -0.1588613046 | AF41: 0.8648517639
R42: 34 | S42: 0.34 | T42: 0.8627561254 | Y42: 34 | Z42: 0.34 | AB42: 0.87630668 | AC42: 0.87126171 | AD42: 0.1552234749 | AE42: -0.1637290595 | AF42: 0.8627561254
A43: Trabajo realizado con el apoyo del Programa UNAM-DGAPA-PAPIME PE110517 | R43: 35 | S43: 0.35 | T43: 0.8613753665 | Y43: 35 | Z43: 0.35 | AB43: 0.8910065242 | AC43: 0.8858769259 | AD43: 0.1429151726 | AE43: -0.167416732 | AF43: 0.8613753665
R44: 36 | S44: 0.36 | T44: 0.8606475123 | Y44: 36 | Z44: 0.36 | AB44: 0.9048270525 | AC44: 0.8996178883 | AD44: 0.1310892315 | AE44: -0.1700596075 | AF44: 0.8606475123
R45: 37 | S45: 0.37 | T45: 0.8604969058 | Y45: 37 | Z45: 0.37 | AB45: 0.9177546257 | AC45: 0.9124710364 | AD45: 0.1198230201 | AE45: -0.1717971507 | AF45: 0.8604969058
R46: 38 | S46: 0.38 | T46: 0.860838561 | Y46: 38 | Z46: 0.38 | AB46: 0.9297764859 | AC46: 0.9244236858 | AD46: 0.1091840587 | AE46: -0.1727691835 | AF46: 0.860838561
R47: 39 | S47: 0.39 | T47: 0.8615820425 | Y47: 39 | Z47: 0.39 | AB47: 0.940880769 | AC47: 0.9354640406 | AD47: 0.09923064886 | AE47: -0.1731126469 | AF47: 0.8615820425
R48: 40 | S48: 0.4 | T48: 0.8626348536 | Y48: 40 | Z48: 0.4 | AB48: 0.9510565163 | AC48: 0.9455812053 | AD48: 0.09001258212 | AE48: -0.1729589338 | AF48: 0.8626348536
R49: 41 | S49: 0.41 | T49: 0.863905335 | Y49: 41 | Z49: 0.41 | AB49: 0.9602936857 | AC49: 0.9547651955 | AD49: 0.08157190048 | AE49: -0.172431761 | AF49: 0.863905335
R50: 42 | S50: 0.42 | T50: 0.8653050973 | Y50: 42 | Z50: 0.42 | AB50: 0.9685831611 | AC50: 0.9630069478 | AD50: 0.07394367931 | AE50: -0.1716455297 | AF50: 0.8653050973
R51: 43 | S51: 0.43 | T51: 0.8667510217 | Y51: 43 | Z51: 0.43 | AB51: 0.9759167619 | AC51: 0.9702983284 | AD51: 0.06715680856 | AE51: -0.1707041153 | AF51: 0.8667510217
R52: 44 | S52: 0.44 | T52: 0.8681668722 | Y52: 44 | Z52: 0.44 | AB52: 0.9822872507 | AC52: 0.9766321418 | AD52: 0.06123474936 | AE52: -0.169700019 | AF52: 0.8681668722
R53: 45 | S53: 0.45 | T53: 0.8694845687 | Y53: 45 | Z53: 0.45 | AB53: 0.9876883406 | AC53: 0.9820021371 | AD53: 0.0561962461 | AE53: -0.1687138145 | AF53: 0.8694845687
R54: 46 | S54: 0.46 | T54: 0.8706451697 | Y54: 46 | Z54: 0.46 | AB54: 0.9921147013 | AC54: 0.9864030149 | AD54: 0.05205597676 | AE54: -0.167813822 | AF54: 0.8706451697
R55: 47 | S55: 0.47 | T55: 0.8715996114 | Y55: 47 | Z55: 0.47 | AB55: 0.9955619646 | AC55: 0.989830432 | AD55: 0.04882512689 | AE55: -0.1670559475 | AF55: 0.8715996114
R56: 48 | S56: 0.48 | T56: 0.8723092491 | Y56: 48 | Z56: 0.48 | AB56: 0.9980267284 | AC56: 0.992281006 | AD56: 0.04651187509 | AE56: -0.166483632 | AF56: 0.8723092491
R57: 49 | S57: 0.49 | T57: 0.8727462355 | Y57: 49 | Z57: 0.49 | AB57: 0.9995065604 | AC57: 0.9937523184 | AD57: 0.04512178035 | AE57: -0.1661278633 | AF57: 0.8727462355
R58: 50 | S58: 0.5 | T58: 0.8728937694 | Y58: 50 | Z58: 0.5 | AB58: 1 | AC58: 0.9942429173 | AD58: 0.0446580639 | AE58: -0.1660072118 | AF58: 0.8728937694
R59: 51 | S59: 0.51 | T59: 0.8727462355 | Y59: 51 | Z59: 0.51 | AB59: 0.9995065604 | AC59: 0.9937523184 | AD59: 0.04512178035 | AE59: -0.1661278633 | AF59: 0.8727462355
R60: 52 | S60: 0.52 | T60: 0.8723092491 | Y60: 52 | Z60: 0.52 | AB60: 0.9980267284 | AC60: 0.992281006 | AD60: 0.04651187509 | AE60: -0.166483632 | AF60: 0.8723092491
R61: 53 | S61: 0.53 | T61: 0.8715996114 | Y61: 53 | Z61: 0.53 | AB61: 0.9955619646 | AC61: 0.989830432 | AD61: 0.04882512689 | AE61: -0.1670559475 | AF61: 0.8715996114
R62: 54 | S62: 0.54 | T62: 0.8706451697 | Y62: 54 | Z62: 0.54 | AB62: 0.9921147013 | AC62: 0.9864030149 | AD62: 0.05205597676 | AE62: -0.167813822 | AF62: 0.8706451697
R63: 55 | S63: 0.55 | T63: 0.8694845687 | Y63: 55 | Z63: 0.55 | AB63: 0.9876883406 | AC63: 0.9820021371 | AD63: 0.0561962461 | AE63: -0.1687138145 | AF63: 0.8694845687
R64: 56 | S64: 0.56 | T64: 0.8681668722 | Y64: 56 | Z64: 0.56 | AB64: 0.9822872507 | AC64: 0.9766321418 | AD64: 0.06123474936 | AE64: -0.169700019 | AF64: 0.8681668722
R65: 57 | S65: 0.57 | T65: 0.8667510217 | Y65: 57 | Z65: 0.57 | AB65: 0.9759167619 | AC65: 0.9702983284 | AD65: 0.06715680856 | AE65: -0.1707041153 | AF65: 0.8667510217
R66: 58 | S66: 0.58 | T66: 0.8653050973 | Y66: 58 | Z66: 0.58 | AB66: 0.9685831611 | AC66: 0.9630069478 | AD66: 0.07394367931 | AE66: -0.1716455297 | AF66: 0.8653050973
R67: 59 | S67: 0.59 | T67: 0.863905335 | Y67: 59 | Z67: 0.59 | AB67: 0.9602936857 | AC67: 0.9547651955 | AD67: 0.08157190048 | AE67: -0.172431761 | AF67: 0.863905335
R68: 60 | S68: 0.6 | T68: 0.8626348536 | Y68: 60 | Z68: 0.6 | AB68: 0.9510565163 | AC68: 0.9455812053 | AD68: 0.09001258212 | AE68: -0.1729589338 | AF68: 0.8626348536
R69: 61 | S69: 0.61 | T69: 0.8615820425 | Y69: 61 | Z69: 0.61 | AB69: 0.940880769 | AC69: 0.9354640406 | AD69: 0.09923064886 | AE69: -0.1731126469 | AF69: 0.8615820425
R70: 62 | S70: 0.62 | T70: 0.860838561 | Y70: 62 | Z70: 0.62 | AB70: 0.9297764859 | AC70: 0.9244236858 | AD70: 0.1091840587 | AE70: -0.1727691835 | AF70: 0.860838561
R71: 63 | S71: 0.63 | T71: 0.8604969058 | Y71: 63 | Z71: 0.63 | AB71: 0.9177546257 | AC71: 0.9124710364 | AD71: 0.1198230201 | AE71: -0.1717971507 | AF71: 0.8604969058
R72: 64 | S72: =(R72*L$6)/(100) -> 0.64 | T72: =IF($AB$6=TRUE,AF72,"") -> 0.8606475123 | Y72: 64 | Z72: 0.64 | AB72: =SIN((PI()*Z72)/(L$6)) -> 0.9048270525 | AC72: =EXP(AA$8)*AB72 -> 0.8996178883 | AD72: =(1/3)*EXP(9*AA$8)*SIN(3*AB72) -> 0.1310892315 | AE72: =(1/5)*EXP(25*AA$8)*SIN(5*AB72) -> -0.1700596075 | AF72: 0.8606475123
R73: 65 | S73: 0.65 | T73: 0.8613753665 | Y73: 65 | Z73: =(Y73*L$6)/(100) -> 0.65 | AB73: 0.8910065242 | AC73: 0.8858769259 | AD73: 0.1429151726 | AE73: -0.167416732 | AF73: 0.8613753665
R74: 66 | S74: 0.66 | T74: 0.8627561254 | Y74: 66 | Z74: 0.66 | AB74: 0.87630668 | AC74: 0.87126171 | AD74: 0.1552234749 | AE74: -0.1637290595 | AF74: 0.8627561254
R75: 67 | S75: 0.67 | T75: 0.8648517639 | Y75: 67 | Z75: 0.67 | AB75: 0.860742027 | AC75: 0.855786664 | AD75: 0.1679264046 | AE75: -0.1588613046 | AF75: 0.8648517639
R76: 68 | S76: 0.68 | T76: 0.8677057975 | Y76: 68 | Z76: 0.68 | AB76: 0.8443279255 | AC76: 0.8394670598 | AD76: 0.1809254884 | AE76: -0.1526867508 | AF76: 0.8677057975
R77: 69 | S77: 0.69 | T77: 0.871338161 | Y77: 69 | Z77: 0.69 | AB77: 0.8270805743 | AC77: 0.822319003 | AD77: 0.1941113164 | AE77: -0.1450921584 | AF77: 0.871338161
R78: 70 | S78: 0.7 | T78: 0.8757398627 | Y78: 70 | Z78: 0.7 | AB78: 0.8090169944 | AC78: 0.8043594166 | AD78: 0.2073635517 | AE78: -0.1359831056 | AF78: 0.8757398627
R79: 71 | S79: 0.71 | T79: 0.8808675697 | Y79: 71 | Z79: 0.71 | AB79: 0.7901550124 | AC79: 0.7856060246 | AD79: 0.2205511789 | AE79: -0.1252896338 | AF79: 0.8808675697
R80: 72 | S80: 0.72 | T80: 0.8866383237 | Y80: 72 | Z80: 0.72 | AB80: 0.7705132428 | AC80: 0.7660773343 | AD80: 0.233533018 | AE80: -0.1129720286 | AF80: 0.8866383237
R81: 73 | S81: 0.73 | T81: 0.8929246224 | Y81: 73 | Z81: 0.73 | AB81: 0.7501110696 | AC81: 0.7457926182 | AD81: 0.2461585255 | AE81: -0.09902652131 | AF81: 0.8929246224
R82: 74 | S82: 0.74 | T82: 0.899550136 | Y82: 74 | Z82: 0.74 | AB82: 0.7289686274 | AC82: 0.7247718948 | AD82: 0.2582689032 | AE82: -0.08349066196 | AF82: 0.899550136
R83: 75 | S83: 0.75 | T83: 0.9062863554 | Y83: 75 | Z83: 0.75 | AB83: 0.7071067812 | AC83: 0.703035909 | AD83: 0.2696985224 | AE83: -0.06644807602 | AF83: 0.9062863554
R84: 76 | S84: 0.76 | T84: 0.9128504819 | Y84: 76 | Z84: 0.76 | AB84: 0.6845471059 | AC84: 0.6806061116 | AD84: 0.2802766694 | AE84: -0.0480322991 | AF84: 0.9128504819
R85: 77 | S85: 0.77 | T85: 0.9189048713 | Y85: 77 | Z85: 0.77 | AB85: 0.6613118653 | AC85: 0.6575046382 | AD85: 0.2898296042 | AE85: -0.02842937115 | AF85: 0.9189048713
R86: 78 | S86: 0.78 | T86: 0.924058325 | Y86: 78 | Z86: 0.78 | AB86: 0.6374239897 | AC86: 0.6337542871 | AD86: 0.2981829173 | AE86: -0.00787887938 | AF86: 0.924058325
R87: 79 | S87: 0.79 | T87: 0.9278694898 | Y87: 79 | Z87: 0.79 | AB87: 0.6129070537 | AC87: 0.6093784971 | AD87: 0.3051641575 | AE87: 0.01332683532 | AF87: 0.9278694898
R88: 80 | S88: 0.8 | T88: 0.9298525637 | Y88: 80 | Z88: 0.8 | AB88: 0.5877852523 | AC88: 0.584401324 | AD88: 0.3106056927 | AE88: 0.03484554703 | AF88: 0.9298525637
R89: 81 | S89: 0.81 | T89: 0.9294854316 | Y89: 81 | Z89: 0.81 | AB89: 0.5620833779 | AC89: 0.5588474174 | AD89: 0.314347755 | AE89: 0.05629025927 | AF89: 0.9294854316
R90: 82 | S90: 0.82 | T90: 0.9262202534 | Y90: 82 | Z90: 0.82 | AB90: 0.535826795 | AC90: 0.5327419958 | AD90: 0.3162416107 | AE90: 0.07723664695 | AF90: 0.9262202534
R91: 83 | S91: 0.83 | T91: 0.9194964085 | Y91: 83 | Z91: 0.83 | AB91: 0.5090414158 | AC91: 0.5061108222 | AD91: 0.3161527853 | AE91: 0.0972328009 | AF91: 0.9194964085
R92: 84 | S92: 0.84 | T92: 0.9087555754 | Y92: 84 | Z92: 0.84 | AB92: 0.4817536741 | AC92: 0.4789801784 | AD92: 0.3139642681 | AE92: 0.1158111289 | AF92: 0.9087555754
R93: 85 | S93: 0.85 | T93: 0.8934585874 | Y93: 85 | Z93: 0.85 | AB93: 0.4539904997 | AC93: 0.4513768389 | AD93: 0.3095796103 | AE93: 0.1325021382 | AF93: 0.8934585874
R94: 86 | S94: 0.86 | T94: 0.8731035702 | Y94: 86 | Z94: 0.86 | AB94: 0.4257792916 | AC94: 0.423328045 | AD94: 0.302925831 | AE94: 0.1468496943 | AF94: 0.8731035702
R95: 87 | S95: 0.87 | T95: 0.8472447476 | Y95: 87 | Z95: 0.87 | AB95: 0.3971478906 | AC95: 0.3948614774 | AD95: 0.2939560416 | AE95: 0.1584272286 | AF95: 0.8472447476
R96: 88 | S96: 0.88 | T96: 0.8155111919 | Y96: 88 | Z96: 0.88 | AB96: 0.3681245527 | AC96: 0.3660052292 | AD96: 0.2826517007 | AE96: 0.166854262 | AF96: 0.8155111919
R97: 89 | S97: 0.89 | T97: 0.7776247257 | Y97: 89 | Z97: 0.89 | AB97: 0.3387379202 | AC97: 0.336787778 | AD97: 0.269024418 | AE97: 0.1718125297 | AF97: 0.7776247257
R98: 90 | S98: 0.9 | T98: 0.7334161373 | Y98: 90 | Z98: 0.9 | AB98: 0.3090169944 | AC98: 0.307237958 | AD98: 0.253117232 | AE98: 0.1730609473 | AF98: =SUM(AC98:AE98) -> 0.7334161373
R99: 91 | S99: 0.91 | T99: 0.6828388801 | Y99: 91 | Z99: 0.91 | AB99: 0.278991106 | AC99: 0.2773849312 | AD99: 0.2350052994 | AE99: 0.1704486496 | AF99: 0.6828388801
R100: 92 | S100: 0.92 | T100: 0.6259794766 | Y100: 92 | Z100: 0.92 | AB100: 0.2486898872 | AC100: 0.2472581589 | AD100: 0.2147959453 | AE100: 0.1639253724 | AF100: 0.6259794766
R101: 93 | S101: 0.93 | T101: 0.5630639455 | Y101: 93 | Z101: 0.93 | AB101: 0.2181432414 | AC101: 0.2168873727 | AD101: 0.1926280439 | AE101: 0.1535485289 | AF101: 0.5630639455
R102: 94 | S102: 0.94 | T102: 0.4944597194 | Y102: 94 | Z102: 0.94 | AB102: 0.1873813146 | AC102: 0.1863025449 | AD102: 0.1686707139 | AE102: 0.1394864607 | AF102: 0.4944597194
R103: 95 | S103: 0.95 | T103: 0.4206727022 | Y103: 95 | Z103: 0.95 | AB103: 0.156434465 | AC103: 0.1555338589 | AD103: 0.143121335 | AE103: 0.1220175083 | AF103: 0.4206727022
R104: 96 | S104: 0.96 | T104: 0.3423393366 | Y104: 96 | Z104: 0.96 | AB104: 0.1253332336 | AC104: 0.1246116798 | AD104: 0.1162029133 | AE104: 0.1015247435 | AF104: 0.3423393366
R105: 97 | S105: 0.97 | T105: 0.2602137855 | Y105: 97 | Z105: 0.97 | AB105: 0.09410831332 | AC105: 0.09356652398 | AD105: 0.08816084088 | AE105: 0.07848642066 | AF105: 0.2602137855
R106: 98 | S106: 0.98 | T106: 0.175150574 | Y106: 98 | Z106: 0.98 | AB106: 0.06279051953 | AC106: 0.06242902932 | AD106: 0.05925911733 | AE106: 0.05346242737 | AF106: 0.175150574
R107: 99 | S107: 0.99 | T107: 0.08808327135 | Y107: 99 | Z107: 0.99 | AB107: 0.03141075908 | AC107: 0.03122992474 | AD107: 0.02977611675 | AE107: 0.02707722985 | AF107: 0.08808327135
R108: 100 | S108: 1 | T108: 3.441683728e-16 | Y108: 100 | Z108: 1 | AB108: 1.225148455e-16 | AC108: 1.218095174e-16 | AD108: 1.163111285e-16 | AE108: 1.060477268e-16 | AF108: 3.441683728e-16

Sheet Graficas
A1: 1
D4: Gráfica | F4: T0 (K) | H4: T1 (k) | J4: α (m2/s) X 10-6 | L4: H | N4: t
F6: 700 | H6: 300 | J6: 1.3e-05 | L6: 1 | N6: 0 | Z6: 1 | AB6: TRUE
S7: x | T7: Primero | Z7: x | AA7: temporal | AB7: Espacial | AC7: 1o | AD7: 2o | AE7: 3o | AF7: Suma
R8: 0 | S8: =(R8*L$6)/(100) -> 0 | T8: =IF($AB$6=TRUE,AF8,"") -> 0 | Y8: 0 | Z8: =(Y8*L$6)/(100) -> 0 | AA8: =-(PI()^2*J6*N6)/(4*L6^2) -> 0 | AB8: =SIN((PI()*Z8)/(L$6)) -> 0 | AC8: =EXP(AA$8)*AB8 -> 0 | AD8: =(1/3)*EXP(9*AA$8)*SIN(3*AB8) -> 0 | AE8: =(1/5)*EXP(25*AA$8)*SIN(5*AB8) -> 0 | AF8: 0
R9: 1 | S9: =(R9*L$6)/(100) -> 0.01 | T9: 0.09405684148 | Y9: 1 | Z9: =(Y9*L$6)/(100) -> 0.01 | AB9: 0.03141075908 | AC9: 0.03141075908 | AD9: 0.03136429324 | AE9: 0.03128178916 | AF9: =SUM(AC9:AE9) -> 0.09405684148
R10: 2 | S10: =(R10*L$6)/(100) -> 0.02 | T10: 0.1869744429 | Y10: 2 | Z10: 0.02 | AB10: 0.06279051953 | AC10: 0.06279051953 | AD10: 0.0624198363 | AE10: 0.06176408702 | AF10: =SUM(AC10:AE10) -> 0.1869744429
R11: 3 | S11: 0.03 | T11: 0.2776452244 | Y11: 3 | Z11: 0.03 | AB11: 0.09410831332 | AC11: 0.09410831332 | AD11: 0.09286309861 | AE11: 0.09067381251 | AF11: 0.2776452244
R12: 4 | S12: 0.04 | T12: 0.3650236241 | Y12: 4 | Z12: 0.04 | AB12: 0.1253332336 | AC12: 0.1253332336 | AD12: 0.1224008583 | AE12: 0.1172895322 | AF12: 0.3650236241
R13: 5 | S13: 0.05 | T13: 0.4481539187 | Y13: 5 | Z13: 0.05 | AB13: 0.156434465 | AC13: 0.156434465 | AD13: 0.1507550349 | AE13: 0.1409644188 | AF13: 0.4481539187
R14: 6 | S14: 0.06 | T14: 0.5261944169 | Y14: 6 | Z14: 0.06 | AB14: 0.1873813146 | AC14: 0.1873813146 | AD14: 0.1776671477 | AE14: 0.1611459546 | AF14: 0.5261944169
R15: 7 | S15: 0.07 | T15: 0.5984371219 | Y15: 7 | Z15: 0.07 | AB15: 0.2181432414 | AC15: 0.2181432414 | AD15: 0.2029022961 | AE15: 0.1773915845 | AF15: 0.5984371219
R16: 8 | S16: 0.08 | T16: 0.6643222066 | Y16: 8 | Z16: 0.08 | AB16: 0.2486898872 | AC16: 0.2486898872 | AD16: 0.2262525726 | AE16: 0.1893797469 | AF16: 0.6643222066
R17: 9 | S17: 0.09 | T17: 0.7234469045 | Y17: 9 | Z17: 0.09 | AB17: 0.278991106 | AC17: 0.278991106 | AD17: 0.2475398382 | AE17: 0.1969159603 | AF17: 0.7234469045
R18: 10 | S18: 0.1 | T18: 0.7755687024 | Y18: 10 | Z18: 0.1 | AB18: 0.3090169944 | AC18: 0.3090169944 | AD18: 0.2666178117 | AE18: 0.1999338963 | AF18: 0.7755687024
R19: 11 | S19: 0.11 | T19: 0.8206029878 | Y19: 11 | Z19: 0.11 | AB19: 0.3387379202 | AC19: 0.3387379202 | AD19: 0.2833734434 | AE19: 0.1984916241 | AF19: 0.8206029878
R20: 12 | S20: 0.12 | T20: 0.8586155561 | Y20: 12 | Z20: 0.12 | AB20: 0.3681245527 | AC20: 0.3681245527 | AD20: 0.2977275681 | AE20: 0.1927634353 | AF20: 0.8586155561
R21: 13 | S21: 0.13 | T21: 0.8898105921 | Y21: 13 | Z21: 0.13 | AB21: 0.3971478906 | AC21: 0.3971478906 | AD21: 0.3096348515 | AE21: 0.18302785 | AF21: 0.8898105921
R22: 14 | S22: 0.14 | T22: 0.9145149096 | Y22: 14 | Z22: 0.14 | AB22: 0.4257792916 | AC22: 0.4257792916 | AD22: 0.3190830649 | AE22: 0.1696525531 | AF22: 0.9145149096
R23: 15 | S23: 0.15 | T23: 0.9331593431 | Y23: 15 | Z23: 0.15 | AB23: 0.4539904997 | AC23: 0.4539904997 | AD23: 0.3260917385 | AE23: 0.1530771048 | AF23: 0.9331593431
R24: 16 | S24: 0.16 | T24: 0.9462582473 | Y24: 16 | Z24: 0.16 | AB24: 0.4817536741 | AC24: 0.4817536741 | AD24: 0.330710262 | AE24: 0.1337943112 | AF24: 0.9462582473
R25: 17 | S25: 0.17 | T25: 0.9543880601 | Y25: 17 | Z25: 0.17 | AB25: 0.5090414158 | AC25: 0.5090414158 | AD25: 0.3330155088 | AE25: 0.1123311356 | AF25: 0.9543880601
R26: 18 | S26: 0.18 | T26: 0.9581658404 | Y26: 18 | Z26: 0.18 | AB26: 0.535826795 | AC26: 0.535826795 | AD26: 0.3331090718 | AE26: 0.08922997362 | AF26: 0.9581658404
R27: 19 | S27: 0.19 | T27: 0.9582286063 | Y27: 19 | Z27: 0.19 | AB27: 0.5620833779 | AC27: 0.5620833779 | AD27: 0.3311142031 | AE27: 0.0650310254 | AF27: 0.9582286063
R28: 20 | S28: =(R28*L$6)/(100) -> 0.2 | T28: 0.9552141743 | Y28: 20 | Z28: 0.2 | AB28: 0.5877852523 | AC28: 0.5877852523 | AD28: 0.3271725494 | AE28: 0.04025637265 | AF28: 0.9552141743
R29: 21 | S29: 0.21 | T29: 0.949744061 | Y29: 21 | Z29: 0.21 | AB29: 0.6129070537 | AC29: 0.6129070537 | AD29: 0.3214407776 | AE29: 0.01539622978 | AF29: 0.949744061
R30: 22 | S30: 0.22 | T30: 0.9424088531 | Y30: 22 | Z30: 0.22 | AB30: 0.6374239897 | AC30: 0.6374239897 | AD30: 0.3140871772 | AE30: -0.009102313823 | AF30: 0.9424088531
R31: 23 | S31: 0.23 | T31: 0.9337562953 | Y31: 23 | Z31: 0.23 | AB31: 0.6613118653 | AC31: 0.6613118653 | AD31: 0.3052883213 | AE31: -0.03284389131 | AF31: 0.9337562953
R32: 24 | S32: 0.24 | T32: 0.924282198 | Y32: 24 | Z32: 0.24 | AB32: 0.6845471059 | AC32: 0.6845471059 | AD32: 0.2952258591 | AE32: -0.05549076702 | AF32: 0.924282198
R33: 25 | S33: 0.25 | T33: 0.9144241333 | Y33: 25 | Z33: 0.25 | AB33: 0.7071067812 | AC33: 0.7071067812 | AD33: 0.2840835027 | AE33: -0.07676615057 | AF33: 0.9144241333
R34: 26 | S34: 0.26 | T34: 0.9045577726 | Y34: 26 | Z34: 0.26 | AB34: =SIN((PI()*Z34)/(L$6)) -> 0.7289686274 | AC34: =EXP(AA$8)*AB34 -> 0.7289686274 | AD34: =(1/3)*EXP(9*AA$8)*SIN(3*AB34) -> 0.2720442589 | AE34: =(1/5)*EXP(25*AA$8)*SIN(5*AB34) -> -0.0964551137 | AF34: =SUM(AC34:AE34) -> 0.9045577726
R35: 27 | S35: 0.27 | T35: 0.8949956312 | Y35: 27 | Z35: 0.27 | AB35: 0.7501110696 | AC35: 0.7501110696 | AD35: 0.2592879469 | AE35: -0.1144033853 | AF35: 0.8949956312
R36: 28 | S36: 0.28 | T36: 0.8859879175 | Y36: 28 | Z36: 0.28 | AB36: 0.7705132428 | AC36: 0.7705132428 | AD36: 0.2459890294 | AE36: -0.1305143546 | AF36: 0.8859879175
R37: 29 | S37: 0.29 | T37: 0.8777251461 | Y37: 29 | Z37: 0.29 | AB37: 0.7901550124 | AC37: 0.7901550124 | AD37: 0.2323147746 | AE37: -0.1447446408 | AF37: 0.8777251461
R38: 30 | S38: 0.3 | T38: 0.8703421522 | Y38: 30 | Z38: 0.3 | AB38: 0.8090169944 | AC38: 0.8090169944 | AD38: 0.2184237554 | AE38: -0.1570985976 | AF38: 0.8703421522
R39: 31 | S39: 0.31 | T39: 0.86392315 | Y39: 31 | Z39: 0.31 | AB39: 0.8270805743 | AC39: 0.8270805743 | AD39: 0.2044646823 | AE39: -0.1676221066 | AF39: 0.86392315
R40: 32 | S40: =(R40*L$6)/(100) -> 0.32 | T40: =IF($AB$6=TRUE,AF40,"") -> 0.8585074946 | Y40: 32 | Z40: 0.32 | AB40: 0.8443279255 | AC40: 0.8443279255 | AD40: 0.1905755583 | AE40: -0.1763959892 | AF40: 0.8585074946
R41: 33 | S41: 0.33 | T41: 0.8540958366 | Y41: 33 | Z41: 0.33 | AB41: 0.860742027 | AC41: 0.860742027 | AD41: 0.1768831389 | AE41: -0.1835293294 | AF41: 0.8540958366
R42: 34 | S42: 0.34 | T42: 0.8506563993 | Y42: 34 | Z42: 0.34 | AB42: 0.87630668 | AC42: 0.87630668 | AD42: 0.1635026698 | AE42: -0.1891529505 | AF42: 0.8506563993
R43: 35 | S43: 0.35 | T43: 0.8481311547 | Y43: 35 | Z43: 0.35 | AB43: 0.8910065242 | AC43: 0.8910065242 | AD43: 0.1505378763 | AE43: -0.1934132458 | AF43: 0.8481311547
R44: 36 | S44: 0.36 | T44: 0.8464417168 | Y44: 36 | Z44: 0.36 | AB44: 0.9048270525 | AC44: 0.9048270525 | AD44: 0.138081172 | AE44: -0.1964665077 | AF44: 0.8464417168
R45: 37 | S45: 0.37 | T45: 0.8454948204 | Y45: 37 | Z45: 0.37 | AB45: 0.9177546257 | AC45: 0.9177546257 | AD45: 0.1262140517 | AE45: -0.198473857 | AF45: 0.8454948204
R46: 38 | S46: 0.38 | T46: 0.8451872959 | Y46: 38 | Z46: 0.38 | AB46: 0.9297764859 | AC46: 0.9297764859 | AD46: 0.1150076373 | AE46: -0.1995968273 | AF46: 0.8451872959
R47: 39 | S47: 0.39 | T47: 0.845410485 | Y47: 39 | Z47: 0.39 | AB47: 0.940880769 | AC47: 0.940880769 | AD47: 0.1045233398 | AE47: -0.1999936238 | AF47: 0.845410485
R48: 40 | S48: 0.4 | T48: 0.8460540808 | Y48: 40 | Z48: 0.4 | AB48: 0.9510565163 | AC48: 0.9510565163 | AD48: 0.09481360665 | AE48: -0.1998160421 | AF48: 0.8460540808
R49: 41 | S49: 0.41 | T49: 0.8470093981 | Y49: 41 | Z49: 0.41 | AB49: 0.9602936857 | AC49: 0.9602936857 | AD49: 0.08592272218 | AE49: -0.1992070098 | AF49: 0.8470093981
R50: 42 | S50: 0.42 | T50: 0.8481721014 | Y50: 42 | Z50: 0.42 | AB50: 0.9685831611 | AC50: 0.9685831611 | AD50: 0.07788763259 | AE50: -0.1982986923 | AF50: 0.8481721014
R51: 43 | S51: 0.43 | T51: 0.8494444359 | Y51: 43 | Z51: 0.43 | AB51: 0.9759167619 | AC51: 0.9759167619 | AD51: 0.07073876875 | AE51: -0.1972110948 | AF51: 0.8494444359
R52: 44 | S52: 0.44 | T52: 0.8507370117 | Y52: 44 | Z52: 0.44 | AB52: 0.9822872507 | AC52: 0.9822872507 | AD52: 0.06450084313 | AE52: -0.1960510821 | AF52: 0.8507370117
R53: 45 | S53: 0.45 | T53: 0.8519702009 | Y53: 45 | Z53: 0.45 | AB53: 0.9876883406 | AC53: 0.9876883406 | AD53: 0.05919359991 | AE53: -0.1949117396 | AF53: 0.8519702009
R54: 46 | S54: 0.46 | T54: 0.8530752052 | Y54: 46 | Z54: 0.46 | AB54: 0.9921147013 | AC54: 0.9921147013 | AD54: 0.05483249995 | AE54: -0.193871996 | AF54: 0.8530752052
R55: 47 | S55: 0.47 | T55: 0.8539948514 | Y55: 47 | Z55: 0.47 | AB55: 0.9955619646 | AC55: 0.9955619646 | AD55: 0.0514293254 | AE55: -0.1929964386 | AF55: 0.8539948514
R56: 48 | S56: 0.48 | T56: 0.8546841657 | Y56: 48 | Z56: 0.48 | AB56: 0.9980267284 | AC56: 0.9980267284 | AD56: 0.04899269109 | AE56: -0.1923352538 | AF56: 0.8546841657
R57: 49 | S57: 0.49 | T57: 0.8551107716 | Y57: 49 | Z57: 0.49 | AB57: 0.9995065604 | AC57: 0.9995065604 | AD57: 0.0475284525 | AE57: -0.1919242413 | AF57: 0.8551107716
R58: 50 | S58: 0.5 | T58: 0.8552551478 | Y58: 50 | Z58: 0.5 | AB58: 1 | AC58: 1 | AD58: 0.04704000269 | AE58: -0.1917848549 | AF58: 0.8552551478
R59: 51 | S59: 0.51 | T59: 0.8551107716 | Y59: 51 | Z59: 0.51 | AB59: 0.9995065604 | AC59: 0.9995065604 | AD59: 0.0475284525 | AE59: -0.1919242413 | AF59: 0.8551107716
R60: 52 | S60: 0.52 | T60: 0.8546841657 | Y60: 52 | Z60: 0.52 | AB60: 0.9980267284 | AC60: 0.9980267284 | AD60: 0.04899269109 | AE60: -0.1923352538 | AF60: 0.8546841657
R61: 53 | S61: 0.53 | T61: 0.8539948514 | Y61: 53 | Z61: 0.53 | AB61: 0.9955619646 | AC61: 0.9955619646 | AD61: 0.0514293254 | AE61: -0.1929964386 | AF61: 0.8539948514
R62: 54 | S62: 0.54 | T62: 0.8530752052 | Y62: 54 | Z62: 0.54 | AB62: 0.9921147013 | AC62: 0.9921147013 | AD62: 0.05483249995 | AE62: -0.193871996 | AF62: 0.8530752052
R63: 55 | S63: 0.55 | T63: 0.8519702009 | Y63: 55 | Z63: 0.55 | AB63: 0.9876883406 | AC63: 0.9876883406 | AD63: 0.05919359991 | AE63: -0.1949117396 | AF63: 0.8519702009
R64: 56 | S64: 0.56 | T64: 0.8507370117 | Y64: 56 | Z64: 0.56 | AB64: 0.9822872507 | AC64: 0.9822872507 | AD64: 0.06450084313 | AE64: -0.1960510821 | AF64: 0.8507370117
R65: 57 | S65: 0.57 | T65: 0.8494444359 | Y65: 57 | Z65: 0.57 | AB65: 0.9759167619 | AC65: 0.9759167619 | AD65: 0.07073876875 | AE65: -0.1972110948 | AF65: 0.8494444359
R66: 58 | S66: 0.58 | T66: 0.8481721014 | Y66: 58 | Z66: 0.58 | AB66: 0.9685831611 | AC66: 0.9685831611 | AD66: 0.07788763259 | AE66: -0.1982986923 | AF66: 0.8481721014
R67: 59 | S67: 0.59 | T67: 0.8470093981 | Y67: 59 | Z67: 0.59 | AB67: 0.9602936857 | AC67: 0.9602936857 | AD67: 0.08592272218 | AE67: -0.1992070098 | AF67: 0.8470093981
R68: 60 | S68: 0.6 | T68: 0.8460540808 | Y68: 60 | Z68: 0.6 | AB68: 0.9510565163 | AC68: 0.9510565163 | AD68: 0.09481360665 | AE68: -0.1998160421 | AF68: 0.8460540808
R69: 61 | S69: 0.61 | T69: 0.845410485 | Y69: 61 | Z69: 0.61 | AB69: 0.940880769 | AC69: 0.940880769 | AD69: 0.1045233398 | AE69: -0.1999936238 | AF69: 0.845410485
R70: 62 | S70: 0.62 | T70: 0.8451872959 | Y70: 62 | Z70: 0.62 | AB70: 0.9297764859 | AC70: 0.9297764859 | AD70: 0.1150076373 | AE70: -0.1995968273 | AF70: 0.8451872959
R71: 63 | S71: 0.63 | T71: 0.8454948204 | Y71: 63 | Z71: 0.63 | AB71: 0.9177546257 | AC71: 0.9177546257 | AD71: 0.1262140517 | AE71: -0.198473857 | AF71: 0.8454948204
R72: 64 | S72: =(R72*L$6)/(100) -> 0.64 | T72: =IF($AB$6=TRUE,AF72,"") -> 0.8464417168 | Y72: 64 | Z72: 0.64 | AB72: 0.9048270525 | AC72: 0.9048270525 | AD72: 0.138081172 | AE72: -0.1964665077 | AF72: 0.8464417168
R73: 65 | S73: 0.65 | T73: 0.8481311547 | Y73: 65 | Z73: =(Y73*L$6)/(100) -> 0.65 | AB73: 0.8910065242 | AC73: 0.8910065242 | AD73: 0.1505378763 | AE73: -0.1934132458 | AF73: 0.8481311547
R74: 66 | S74: 0.66 | T74: 0.8506563993 | Y74: 66 | Z74: 0.66 | AB74: 0.87630668 | AC74: 0.87630668 | AD74: 0.1635026698 | AE74: -0.1891529505 | AF74: 0.8506563993
R75: 67 | S75: 0.67 | T75: 0.8540958366 | Y75: 67 | Z75: 0.67 | AB75: 0.860742027 | AC75: 0.860742027 | AD75: 0.1768831389 | AE75: -0.1835293294 | AF75: 0.8540958366
R76: 68 | S76: 0.68 | T76: 0.8585074946 | Y76: 68 | Z76: 0.68 | AB76: 0.8443279255 | AC76: 0.8443279255 | AD76: 0.1905755583 | AE76: -0.1763959892 | AF76: 0.8585074946
R77: 69 | S77: 0.69 | T77: 0.86392315 | Y77: 69 | Z77: 0.69 | AB77: 0.8270805743 | AC77: 0.8270805743 | AD77: 0.2044646823 | AE77: -0.1676221066 | AF77: 0.86392315
R78: 70 | S78: 0.7 | T78: 0.8703421522 | Y78: 70 | Z78: 0.7 | AB78: 0.8090169944 | AC78: 0.8090169944 | AD78: 0.2184237554 | AE78: -0.1570985976 | AF78: 0.8703421522
R79: 71 | S79: 0.71 | T79: 0.8777251461 | Y79: 71 | Z79: 0.71 | AB79: 0.7901550124 | AC79: 0.7901550124 | AD79: 0.2323147746 | AE79: -0.1447446408 | AF79: 0.8777251461
R80: 72 | S80: 0.72 | T80: 0.8859879175 | Y80: 72 | Z80: 0.72 | AB80: 0.7705132428 | AC80: 0.7705132428 | AD80: 0.2459890294 | AE80: -0.1305143546 | AF80: 0.8859879175
R81: 73 | S81: 0.73 | T81: 0.8949956312 | Y81: 73 | Z81: 0.73 | AB81: 0.7501110696 | AC81: 0.7501110696 | AD81: 0.2592879469 | AE81: -0.1144033853 | AF81: 0.8949956312
R82: 74 | S82: 0.74 | T82: 0.9045577726 | Y82: 74 | Z82: 0.74 | AB82: 0.7289686274 | AC82: 0.7289686274 | AD82: 0.2720442589 | AE82: -0.0964551137 | AF82: 0.9045577726
R83: 75 | S83: 0.75 | T83: 0.9144241333 | Y83: 75 | Z83: 0.75 | AB83: 0.7071067812 | AC83: 0.7071067812 | AD83: 0.2840835027 | AE83: -0.07676615057 | AF83: 0.9144241333
R84: 76 | S84: 0.76 | T84: 0.924282198 | Y84: 76 | Z84: 0.76 | AB84: 0.6845471059 | AC84: 0.6845471059 | AD84: 0.2952258591 | AE84: -0.05549076702 | AF84: 0.924282198
R85: 77 | S85: 0.77 | T85: 0.9337562953 | Y85: 77 | Z85: 0.77 | AB85: 0.6613118653 | AC85: 0.6613118653 | AD85: 0.3052883213 | AE85: -0.03284389131 | AF85: 0.9337562953
R86: 78 | S86: 0.78 | T86: 0.9424088531 | Y86: 78 | Z86: 0.78 | AB86: 0.6374239897 | AC86: 0.6374239897 | AD86: 0.3140871772 | AE86: -0.009102313823 | AF86: 0.9424088531
R87: 79 | S87: 0.79 | T87: 0.949744061 | Y87: 79 | Z87: 0.79 | AB87: 0.6129070537 | AC87: 0.6129070537 | AD87: 0.3214407776 | AE87: 0.01539622978 | AF87: 0.949744061
R88: 80 | S88: 0.8 | T88: 0.9552141743 | Y88: 80 | Z88: 0.8 | AB88: 0.5877852523 | AC88: 0.5877852523 | AD88: 0.3271725494 | AE88: 0.04025637265 | AF88: 0.9552141743
R89: 81 | S89: 0.81 | T89: 0.9582286063 | Y89: 81 | Z89: 0.81 | AB89: 0.5620833779 | AC89: 0.5620833779 | AD89: 0.3311142031 | AE89: 0.0650310254 | AF89: 0.9582286063
R90: 82 | S90: 0.82 | T90: 0.9581658404 | Y90: 82 | Z90: 0.82 | AB90: 0.535826795 | AC90: 0.535826795 | AD90: 0.3331090718 | AE90: 0.08922997362 | AF90: 0.9581658404
R91: 83 | S91: 0.83 | T91: 0.9543880601 | Y91: 83 | Z91: 0.83 | AB91: 0.5090414158 | AC91: 0.5090414158 | AD91: 0.3330155088 | AE91: 0.1123311356 | AF91: 0.9543880601
R92: 84 | S92: 0.84 | T92: 0.9462582473 | Y92: 84 | Z92: 0.84 | AB92: 0.4817536741 | AC92: 0.4817536741 | AD92: 0.330710262 | AE92: 0.1337943112 | AF92: 0.9462582473
R93: 85 | S93: 0.85 | T93: 0.9331593431 | Y93: 85 | Z93: 0.85 | AB93: 0.4539904997 | AC93: 0.4539904997 | AD93: 0.3260917385 | AE93: 0.1530771048 | AF93: 0.9331593431
R94: 86 | S94: 0.86 | T94: 0.9145149096 | Y94: 86 | Z94: 0.86 | AB94: 0.4257792916 | AC94: 0.4257792916 | AD94: 0.3190830649 | AE94: 0.1696525531 | AF94: 0.9145149096
R95: 87 | S95: 0.87 | T95: 0.8898105921 | Y95: 87 | Z95: 0.87 | AB95: 0.3971478906 | AC95: 0.3971478906 | AD95: 0.3096348515 | AE95: 0.18302785 | AF95: 0.8898105921
R96: 88 | S96: 0.88 | T96: 0.8586155561 | Y96: 88 | Z96: 0.88 | AB96: 0.3681245527 | AC96: 0.3681245527 | AD96: 0.2977275681 | AE96: 0.1927634353 | AF96: 0.8586155561
R97: 89 | S97: 0.89 | T97: 0.8206029878 | Y97: 89 | Z97: 0.89 | AB97: 0.3387379202 | AC97: 0.3387379202 | AD97: 0.2833734434 | AE97: 0.1984916241 | AF97: 0.8206029878
R98: 90 | S98: 0.9 | T98: 0.7755687024 | Y98: 90 | Z98: 0.9 | AB98: =SIN((PI()*Z98)/(L$6)) -> 0.3090169944 | AC98: =EXP(AA$8)*AB98 -> 0.3090169944 | AD98: =(1/3)*EXP(9*AA$8)*SIN(3*AB98) -> 0.2666178117 | AE98: =(1/5)*EXP(25*AA$8)*SIN(5*AB98) -> 0.1999338963 | AF98: =SUM(AC98:AE98) -> 0.7755687024
R99: 91 | S99: 0.91 | T99: 0.7234469045 | Y99: 91 | Z99: 0.91 | AB99: 0.278991106 | AC99: 0.278991106 | AD99: 0.2475398382 | AE99: 0.1969159603 | AF99: 0.7234469045
R100: 92 | S100: 0.92 | T100: 0.6643222066 | Y100: 92 | Z100: 0.92 | AB100: 0.2486898872 | AC100: 0.2486898872 | AD100: 0.2262525726 | AE100: 0.1893797469 | AF100: 0.6643222066
R101: 93 | S101: 0.93 | T101: 0.5984371219 | Y101: 93 | Z101: 0.93 | AB101: 0.2181432414 | AC101: 0.2181432414 | AD101: 0.2029022961 | AE101: 0.1773915845 | AF101: 0.5984371219
R102: 94 | S102: 0.94 | T102: 0.5261944169 | Y102: 94 | Z102: 0.94 | AB102: 0.1873813146 | AC102: 0.1873813146 | AD102: 0.1776671477 | AE102: 0.1611459546 | AF102: 0.5261944169
R103: 95 | S103: 0.95 | T103: 0.4481539187 | Y103: 95 | Z103: 0.95 | AB103: 0.156434465 | AC103: 0.156434465 | AD103: 0.1507550349 | AE103: 0.1409644188 | AF103: 0.4481539187
R104: 96 | S104: =(R104*L$6)/(100) -> 0.96 | T104: 0.3650236241 | Y104: 96 | Z104: 0.96 | AB104: 0.1253332336 | AC104: 0.1253332336 | AD104: 0.1224008583 | AE104: 0.1172895322 | AF104: 0.3650236241
R105: 97 | S105: 0.97 | T105: 0.2776452244 | Y105: 97 | Z105: 0.97 | AB105: 0.09410831332 | AC105: 0.09410831332 | AD105: 0.09286309861 | AE105: 0.09067381251 | AF105: 0.2776452244
R106: 98 | S106: 0.98 | T106: 0.1869744429 | Y106: 98 | Z106: 0.98 | AB106: 0.06279051953 | AC106: 0.06279051953 | AD106: 0.0624198363 | AE106: 0.06176408702 | AF106: 0.1869744429
R107: 99 | S107: 0.99 | T107: 0.09405684148 | Y107: 99 | Z107: 0.99 | AB107: 0.03141075908 | AC107: 0.03141075908 | AD107: 0.03136429324 | AE107: 0.03128178916 | AF107: 0.09405684148
R108: 100 | S108: 1 | T108: 3.675445365e-16 | Y108: 100 | Z108: 1 | AB108: 1.225148455e-16 | AC108: 1.225148455e-16 | AD108: 1.225148455e-16 | AE108: 1.225148455e-16 | AF108: 3.675445365e-16
